bitfinex-derivatives/quotes_SOLF0:USTF0_20250819
["timestamp","ask_amount","ask_price","bid_price","bid_amount"]
[1755640409754,3.04908471,179.2,179.14,2.99642498]
[1755640409954,2.96,179.17,179.14,2.99642498]
[1755640411355,2.96,179.17,179.14,0.03642498]
[1755640411551,2.96,179.17,179.14,2.99642498]
[1755640411855,2.96,179.17,179.15,2.96]
[1755640414451,6.00908471,179.2,179.15,2.96]
[1755640414657,3.04908471,179.2,179.15,2.96]
[1755640414852,2.96,179.17,179.15,2.96]
[1755640417858,3.04908471,179.2,179.14,0.03642498]
[1755640418055,2.96,179.17,179.15,2.96]
[1755640419551,2.96,179.19,179.15,2.96]
[1755640419759,3.04908471,179.2,179.16,2.96]
[1755640420050,2.96,179.18,179.16,2.96]
[1755640423160,3.04908471,179.21,179.16,2.96]
[1755640423355,2.96,179.19,179.16,2.96]
[1755640423659,2.96,179.18,179.16,2.96]
[1755640427659,2.96,179.18,179.14,5.61882498]
[1755640427854,2.96,179.18,179.15,2.96]
[1755640430062,2.96,179.18,179.14,0.03642498]
[1755640430063,2.96,179.18,179.16,2.96]
[1755640431161,2.96,179.2,179.14,0.03642498]
[1755640431368,2.96,179.18,179.14,2.99642498]
[1755640431559,2.96,179.17,179.14,2.99642498]
[1755640440572,3.04908471,179.19,179.14,2.99642498]
[1755640440766,2.53475313,179.18,179.14,2.99642498]
[1755640440969,3.11,179.18,179.14,2.99642498]
[1755640442265,3.04908471,179.19,179.14,0.03642498]
[1755640442471,2.53467533,179.18,179.14,3.00642498]
[1755640442670,3.11,179.19,179.15,2.97]
[1755640442870,5.64467533,179.18,179.15,2.97]
[1755640443072,3.11,179.18,179.15,2.97]
[1755640443273,3.11,179.18,179.14,3.00642498]
[1755640447278,3.11,179.18,179.15,2.97]
[1755640447481,3.11,179.17,179.15,2.97]
[1755640448077,9.39350403,179.2,179.15,2.97]
[1755640448285,2.53451308,179.19,179.15,2.97]
[1755640448476,2.53451308,179.18,179.15,2.97]
[1755640448771,3.11,179.19,179.15,2.97]
[1755640448978,2.53448602,179.18,179.15,2.97]
[1755640449178,3.11,179.18,179.15,2.97]
[1755640450972,3.11,179.17,179.14,0.03642498]
[1755640451175,9.39350403,179.2,179.14,3.00642498]
[1755640451380,2.53441316,179.19,179.14,3.00642498]
[1755640451579,2.53441316,179.18,179.14,3.00642498]
[1755640451778,5.64441316,179.18,179.14,3.00642498]
[1755640451979,3.11,179.18,179.14,3.00642498]
[1755640452284,3.11,179.18,179.15,2.97]
[1755640454391,3.11,179.18,179.14,0.03642498]
[1755640455090,3.11,179.17,179.15,2.97]
[1755640455291,6.28350403,179.2,179.15,2.97]
[1755640455491,3.11,179.18,179.15,2.97]
[1755640459393,3.11,179.18,179.14,0.03642498]
[1755640459690,3.11,179.18,179.14,3.00642498]
[1755640459994,3.11,179.18,179.15,2.97]
[1755640464492,6.28350403,179.2,179.15,2.97]
[1755640464694,3.11,179.17,179.15,2.97]
[1755640465394,6.28350403,179.2,179.15,2.97]
[1755640465598,3.11,179.18,179.15,2.97]
[1755640465992,6.28350403,179.2,179.15,2.97]
[1755640466191,3.11,179.17,179.15,2.97]
[1755640467296,3.11,179.17,179.14,0.03642498]
[1755640467498,3.11,179.17,179.14,3.00642498]
[1755640467894,3.11,179.16,179.14,3.00642498]
[1755640468095,6.28350403,179.19,179.14,0.03642498]
[1755640468395,5.6071678,179.18,179.14,0.03642498]
[1755640468597,2.5371678,179.17,179.15,2.9]
[1755640468796,3.07,179.18,179.15,2.9]
[1755640468998,3.07,179.17,179.15,2.9]
[1755640472206,3.07,179.17,179.14,5.98550969]
[1755640472604,12.40258874,179.2,179.14,2.93642498]
[1755640472806,3.07,179.18,179.14,0.03642498]
[1755640473005,3.07,179.18,179.15,2.9]
[1755640474099,3.07,179.18,179.14,0.03642498]
[1755640474300,3.07,179.18,179.14,2.93642498]
[1755640475601,9.33258874,179.2,179.14,2.93642498]
[1755640475602,9.33258874,179.2,179.14,0.03642498]
[1755640475806,3.07,179.18,179.14,0.03642498]
[1755640476004,3.07,179.18,179.14,2.93642498]
[1755640477408,9.33258874,179.2,179.14,2.93642498]
[1755640477609,3.07,179.17,179.14,2.93642498]
[1755640478008,3.07,179.17,179.14,0.03642498]
[1755640478210,3.07,179.17,179.14,2.93642498]
[1755640478810,3.07,179.17,179.15,2.9]
[1755640483314,3.07,179.17,179.14,0.03642498]
[1755640483614,3.07,179.17,179.14,2.93642498]
[1755640485616,3.07,179.17,179.14,0.03642498]
[1755640485915,3.07,179.17,179.14,2.93642498]
[1755640487816,9.33258874,179.2,179.14,2.93642498]
[1755640488008,2.53843889,179.19,179.14,2.93642498]
[1755640488214,5.60843889,179.18,179.14,2.93642498]
[1755640488414,3.07,179.18,179.14,2.93642498]
[1755640489819,3.07,179.19,179.14,2.93642498]
[1755640490009,2.53842073,179.18,179.14,2.93642498]
[1755640490213,3.07,179.17,179.15,2.9]
[1755640492722,9.33258874,179.2,179.14,0.03642498]
[1755640492917,2.53840655,179.19,179.14,0.03642498]
[1755640493118,2.53840655,179.18,179.15,2.9]
[1755640493325,3.07,179.19,179.15,2.9]
[1755640493517,2.53840465,179.18,179.15,2.9]
[1755640493717,3.07,179.19,179.15,2.9]
[1755640493919,2.53840465,179.18,179.15,2.9]
[1755640494119,3.07,179.19,179.15,2.9]
[1755640494315,2.53840465,179.18,179.15,2.9]
[1755640494525,3.07,179.19,179.15,2.9]
[1755640494826,2.53840438,179.18,179.15,2.9]
[1755640495127,3.07,179.19,179.15,2.9]
[1755640495324,2.53840438,179.18,179.15,2.9]
[1755640495625,3.07,179.19,179.15,2.9]
[1755640495824,2.53840572,179.18,179.15,2.9]
[1755640496124,3.07,179.19,179.15,2.9]
[1755640496320,2.53840572,179.18,179.15,2.9]
[1755640496625,3.07,179.19,179.15,2.9]
[1755640496924,2.53840868,179.18,179.15,2.9]
[1755640497126,3.07,179.19,179.15,2.9]
[1755640497325,2.53840868,179.18,179.15,2.9]
[1755640497526,3.07,179.19,179.15,2.9]
[1755640497724,2.53841329,179.18,179.15,2.9]
[1755640497923,3.07,179.19,179.15,2.9]
[1755640498223,2.53841329,179.18,179.15,2.9]
[1755640498522,3.07,179.19,179.15,2.9]
[1755640498722,2.53841955,179.18,179.15,2.9]
[1755640498920,3.07,179.19,179.15,2.9]
[1755640499120,2.53841955,179.18,179.15,2.9]
[1755640499317,3.07,179.19,179.15,2.9]
[1755640499523,2.5384252,179.18,179.15,2.9]
[1755640499723,3.07,179.19,179.15,2.9]
[1755640499921,2.53842749,179.18,179.15,2.9]
[1755640500117,3.07,179.19,179.15,2.9]
[1755640500318,5.67842749,179.18,179.15,2.9]
[1755640500518,3.14,179.18,179.15,2.9]
[1755640505237,3.14,179.18,179.14,0.03642498]
[1755640505436,3.14,179.18,179.15,3.05]
[1755640508139,3.14,179.18,179.16,3.05]
[1755640510333,3.14,179.18,179.14,0.03642498]
[1755640510536,9.42350403,179.22,179.15,3.05]
[1755640510733,2.53834468,179.21,179.15,3.05]
[1755640510936,2.53834468,179.2,179.15,3.05]
[1755640511137,9.42350403,179.22,179.15,3.05]
[1755640511433,2.53791803,179.21,179.15,3.05]
[1755640511639,2.53791803,179.2,179.15,3.05]
[1755640511842,9.42350403,179.22,179.15,3.05]
[1755640512140,2.5379334,179.21,179.15,3.05]
[1755640512436,2.53795064,179.2,179.15,3.05]
[1755640512636,9.42350403,179.22,179.15,3.05]
[1755640512838,2.53764482,179.21,179.15,3.05]
[1755640513139,2.53764482,179.2,179.15,3.05]
[1755640513342,3.14,179.2,179.15,3.05]
[1755640519251,3.14,179.2,179.14,3.08550969]
[1755640519452,9.33258874,179.23,179.16,3.05]
[1755640519646,2.5363948,179.22,179.16,3.05]
[1755640519851,2.5363948,179.21,179.16,3.05]
[1755640520046,9.33258874,179.23,179.16,3.05]
[1755640520254,2.53639433,179.22,179.16,3.05]
[1755640520450,5.67639433,179.21,179.16,3.05]
[1755640520751,3.14,179.21,179.19,3.05]
[1755640525854,3.14,179.21,179.18,0.03795326]
[1755640526153,3.14,179.21,179.19,3.05]
[1755640532962,2.98,179.22,179.19,3.05]
[1755640533164,2.53483563,179.21,179.19,3.05]
[1755640533463,2.98,179.22,179.19,3.05]
[1755640533665,2.53482487,179.21,179.19,3.05]
[1755640533963,2.98,179.22,179.19,3.05]
[1755640534160,2.53481498,179.21,179.19,3.05]
[1755640534363,2.98,179.22,179.19,3.05]
[1755640534562,2.53481528,179.21,179.19,3.05]
[1755640534760,2.98,179.22,179.19,3.05]
[1755640535357,2.98,179.22,179.2,2.86]
[1755640540167,12.31258874,179.24,179.2,2.86]
[1755640540368,5.51456193,179.23,179.2,2.86]
[1755640540666,2.53456193,179.22,179.21,2.86]
[1755640541068,2.53456193,179.22,179.18,0.03795326]
[1755640541263,6.02908471,179.24,179.18,0.03795326]
[1755640541570,5.51441368,179.23,179.19,2.86]
[1755640541768,2.98,179.23,179.19,2.86]
[1755640542969,3.04908471,179.24,179.18,0.03795326]
[1755640543168,2.98,179.22,179.2,2.86]
[1755640547972,2.98,179.22,179.19,2.86]
[1755640549972,2.98,179.22,179.2,2.86]
[1755640552073,9.33258874,179.24,179.18,0.03795326]
[1755640552270,5.51871036,179.23,179.19,2.86]
[1755640552472,2.53871036,179.22,179.19,2.86]
[1755640552771,2.98,179.23,179.19,2.86]
[1755640552972,2.53871036,179.22,179.19,2.86]
[1755640553175,2.98,179.23,179.19,2.86]
[1755640553372,2.53892886,179.22,179.19,2.86]
[1755640553674,2.98,179.23,179.19,2.86]
[1755640553870,2.53892886,179.22,179.19,2.86]
[1755640554070,9.33258874,179.24,179.19,2.86]
[1755640554270,2.98,179.22,179.19,2.86]
[1755640555980,2.98,179.22,179.2,2.86]
[1755640556474,12.31258874,179.24,179.18,0.03795326]
[1755640556679,2.53939535,179.23,179.18,0.03795326]
[1755640556885,2.98,179.22,179.19,2.86]
[1755640557070,2.98,179.22,179.2,2.86]
[1755640557877,3.04908471,179.24,179.19,2.86]
[1755640558269,2.98,179.22,179.19,3.05]
[1755640559180,2.98,179.22,179.2,3.05]
[1755640568181,2.98,179.22,179.21,3.05]
[1755640569784,6.13908471,179.24,179.21,3.05]
[1755640569975,5.62870509,179.23,179.21,3.05]
[1755640570280,3.09,179.23,179.21,3.05]
[1755640570679,9.33258874,179.25,179.18,0.03795326]
[1755640570881,2.5386716,179.24,179.18,0.03795326]
[1755640571081,5.6286716,179.23,179.18,0.03795326]
[1755640571381,3.09,179.23,179.2,3.05]
[1755640574387,9.33258874,179.25,179.2,3.05]
[1755640574582,3.09,179.22,179.18,0.03795326]
[1755640574882,3.09,179.2,179.18,0.03795326]
[1755640579086,3.09,179.22,179.18,0.03795326]
[1755640579290,3.09,179.2,179.18,0.03795326]
[1755640579583,8.68334229,179.19,179.18,0.03795326]
[1755640580894,0.46204674,179.18,179.13,3.05]
[1755640581190,3.09,179.16,179.13,3.05]
[1755640581394,3.09,179.15,179.13,3.05]
[1755640582887,3.09,179.15,179.12,125.61000626]
[1755640583289,3.09,179.15,179.12,128.66000626]
[1755640583586,3.09,179.14,179.1,3.04908471]
[1755640583894,3.09,179.14,179.11,3.05]
[1755640591196,0.03840205,179.16,179.11,3.05]
[1755640591499,3.02,179.15,179.1,130.62735464]
[1755640591698,3.02,179.14,179.1,133.69735464]
[1755640591894,3.02,179.13,179.1,133.69735464]
[1755640594901,3.02,179.13,179.1,130.62735464]
[1755640595098,3.02,179.13,179.11,3.07]
[1755640597001,3.05840205,179.16,179.1,126.16300634]
[1755640597895,3.05840205,179.16,179.1,129.23300634]
[1755640598804,3.05840205,179.16,179.1,3.07]
[1755640601798,0.03840205,179.16,179.11,3.07]
[1755640602597,3.05840205,179.16,179.1,132.79455994]
[1755640602804,3.05840205,179.16,179.14,3.07]
[1755640603304,0.03840205,179.16,179.14,3.07]
[1755640613310,0.03840205,179.16,179.1,132.79455994]
[1755640613610,0.03840205,179.16,179.11,3.07]
[1755640617315,3.05840205,179.16,179.11,3.07]
[1755640618214,3.05840205,179.16,179.11,2.88]
[1755640618512,3.05840205,179.16,179.1,132.79455994]
[1755640618712,3.05840205,179.16,179.13,2.88]
[1755640618914,3.05840205,179.16,179.1,132.79455994]
[1755640619112,3.05840205,179.16,179.13,2.88]
[1755640619713,3.05840205,179.16,179.14,2.88]
[1755640624518,0.03840205,179.16,179.14,2.88]
[1755640626015,0.03840205,179.16,179.1,132.79455994]
[1755640626216,0.03840205,179.16,179.11,2.88]
[1755640629323,0.03840205,179.16,179.1,132.79455994]
[1755640629917,0.03840205,179.16,179.12,3.04908471]
[1755640630119,0.03840205,179.16,179.13,2.88]
[1755640631322,0.03840205,179.16,179.12,3.04908471]
[1755640631515,0.03840205,179.16,179.15,2.88]
[1755640644835,2.99,179.15,179.1,135.67455994]
[1755640645133,2.99,179.14,179.12,2.88]
[1755640645329,2.99,179.15,179.1,132.62547523]
[1755640645534,3.08748676,179.16,179.1,132.62547523]
[1755640645733,2.99,179.12,179.1,132.62547523]
[1755640647732,3.04908471,179.14,179.1,129.74547523]
[1755640647932,3.04908471,179.12,179.06,2.88]
[1755640648128,2.99,179.11,179.06,2.88]
[1755640648732,0.03664255,179.1,179.06,2.88]
[1755640649037,2.98,179.09,179.03,3.16]
[1755640649230,3.04908471,179.08,179.03,3.16]
[1755640649432,2.98,179.07,179.01,3.04908471]
[1755640649638,2.98,179.07,179.0,3.16]
[1755640650338,3.04908471,179.08,179.01,3.16]
[1755640650339,0.03722819,179.05,179.01,3.16]
[1755640650638,2.98,179.03,179.01,3.16]
[1755640651548,2.98,179.03,178.99,3.04908471]
[1755640651840,2.98,179.03,179.0,3.16]
[1755640652142,2.98,179.04,178.99,3.04908471]
[1755640652338,0.03722819,179.05,178.99,3.04908471]
[1755640652538,3.01722819,179.05,178.99,3.04908471]
[1755640652738,3.01722819,179.05,179.02,3.16]
[1755640654139,3.01722819,179.05,179.01,3.04908471]
[1755640654140,3.01722819,179.05,179.03,3.16]
[1755640655542,0.03722819,179.05,179.02,3.16]
[1755640655840,0.03722819,179.05,179.04,3.16]
[1755640656344,2.98,179.08,179.05,3.16]
[1755640656543,0.03554785,179.06,179.05,3.16]
[1755640660746,0.03554785,179.06,179.05,6.20908471]
[1755640661749,0.03554785,179.06,179.05,11.79428471]
[1755640662949,3.04908471,179.14,179.05,11.79428471]
[1755640663142,2.98,179.13,179.06,3.16]
[1755640664353,2.98,179.13,179.06,130.77610726]
[1755640669959,2.98,179.13,179.06,127.61610726]
[1755640670155,2.98,179.13,179.07,3.16]
[1755640674653,2.98,179.13,179.08,0.035325]
[1755640674856,2.98,179.12,179.08,0.035325]
[1755640675257,2.98,179.12,179.09,3.16]
[1755640677062,2.98,179.12,179.08,0.035325]
[1755640677063,2.98,179.12,179.1,3.16]
[1755640683568,3.04908471,179.14,179.1,3.16]
[1755640683769,2.96,179.13,179.1,3.16]
[1755640684468,2.96,179.12,179.1,3.16]
[1755640690364,3.04908471,179.16,179.1,3.04]
[1755640690973,2.96,179.17,179.1,3.04]
[1755640694673,6.00908471,179.19,179.12,3.04]
[1755640694870,3.04908471,179.19,179.12,3.04]
[1755640695073,3.04908471,179.17,179.09,3.04908471]
[1755640695277,2.96,179.16,179.09,6.08908471]
[1755640696673,3.04908471,179.17,179.11,3.07550977]
[1755640696674,2.96,179.15,179.11,3.07550977]
[1755640696877,2.96,179.14,179.11,130.52492119]
[1755640699075,3.04908471,179.15,179.11,127.48492119]
[1755640699281,2.96,179.12,179.11,127.48492119]
[1755640699484,2.96,179.12,179.11,127.44941142]
[1755640699890,2.96,179.11,179.09,3.04]
[1755640707094,3.04908471,179.15,179.09,3.04]
[1755640707395,2.96,179.12,179.09,3.04]
[1755640709995,3.1,179.14,179.08,0.03541525]
[1755640715487,3.1,179.14,179.08,3.01541525]
[1755640717099,3.1,179.17,179.11,3.04908471]
[1755640717302,3.1,179.17,179.12,2.98]
[1755640717494,3.1,179.17,179.13,2.98]
[1755640717694,9.33258874,179.19,179.13,2.98]
[1755640717695,3.1,179.16,179.13,2.98]
[1755640718596,3.1,179.16,179.11,3.04908471]
[1755640718990,3.1,179.16,179.12,2.98]
[1755640719193,3.1,179.16,179.13,2.98]
[1755640723209,6.14908471,179.19,179.13,2.98]
[1755640723402,3.1,179.17,179.14,2.98]
[1755640723705,3.04908471,179.19,179.12,2.98]
[1755640723905,2.53067675,179.18,179.12,2.98]
[1755640724102,3.04908471,179.19,179.12,2.98]
[1755640724304,2.53053938,179.18,179.12,2.98]
[1755640724505,3.04908471,179.19,179.12,2.98]
[1755640724704,2.53053938,179.18,179.12,2.98]
[1755640724904,6.14908471,179.19,179.12,2.98]
[1755640725105,6.14908471,179.19,179.13,3.04908471]
[1755640725306,6.14908471,179.19,179.15,2.98]
[1755640725502,6.14908471,179.19,179.14,0.03533846]
[1755640725698,6.14908471,179.19,179.16,2.98]
[1755640728107,3.1,179.18,179.15,2.98]
[1755640729506,3.1,179.18,179.16,2.98]
[1755640731413,6.14908471,179.18,179.14,0.03533846]
[1755640731803,3.1,179.17,179.14,0.03533846]
[1755640732002,3.04908471,179.16,179.14,0.03533846]
[1755640732213,3.1,179.15,179.14,0.03533846]
[1755640740314,3.04908471,179.15,179.14,0.03533846]
[1755640740521,6.05908471,179.15,179.14,0.03533846]
[1755640741414,3.01,179.15,179.14,0.03533846]
[1755640741618,6.05908471,179.15,179.14,0.03533846]
[1755640743523,3.01,179.15,179.14,0.03533846]
[1755640750524,0.46466154,179.14,179.08,3.08]
[1755640750726,3.04908471,179.14,179.08,3.08]
[1755640751223,6.05908471,179.14,179.08,3.08]
[1755640752224,0.03690674,179.13,179.07,132.56846962]
[1755640752421,3.01,179.12,179.07,132.56846962]
[1755640752620,3.01,179.12,179.08,3.08]
[1755640752820,3.01,179.12,179.1,3.08]
[1755640756628,3.01,179.12,179.07,132.56846962]
[1755640756829,0.03690674,179.13,179.11,3.08]
[1755640757127,3.04690674,179.13,179.11,3.08]
[1755640758328,3.04690674,179.13,179.07,132.56846962]
[1755640758529,3.04690674,179.13,179.08,3.08]
[1755640758731,3.04690674,179.13,179.09,3.08]
[1755640759627,3.04690674,179.13,179.07,129.51938491]
[1755640760228,3.04690674,179.13,179.07,132.59938491]
[1755640760830,3.04690674,179.13,179.07,129.51938491]
[1755640761027,3.04690674,179.13,179.08,3.08]
[1755640762931,3.04690674,179.13,179.07,129.51938491]
[1755640763125,3.01,179.12,179.07,129.51938491]
[1755640763432,3.01,179.12,179.1,3.08]
[1755640766730,0.03690674,179.13,179.08,3.08]
[1755640766926,0.03690674,179.13,179.09,3.04908471]
[1755640767127,0.03690674,179.13,179.1,3.08]
[1755640768731,0.03690674,179.13,179.11,2.9]
[1755640769030,0.03690674,179.13,179.1,2.9]
[1755640770439,0.03690674,179.13,179.12,2.9]
[1755640770640,3.10690674,179.13,179.1,2.9]
[1755640770834,3.10690674,179.13,179.11,2.9]
[1755640776546,0.03690674,179.13,179.11,2.9]
[1755640778453,0.03690674,179.13,179.07,132.56846962]
[1755640778646,0.03690674,179.13,179.08,2.9]
[1755640779950,0.03690674,179.13,179.09,2.9]
[1755640780148,0.03690674,179.13,179.09,5.94908471]
[1755640780348,0.03690674,179.13,179.1,2.9]
[1755640782549,0.03690674,179.13,179.05,6.23492643]
[1755640782746,0.03690674,179.13,179.01,375.24]
[1755640782747,0.03690674,179.13,179.06,5.94908471]
[1755640782953,3.07,179.12,179.06,141.10908471]
[1755640783152,3.07,179.12,179.06,269.5858086]
[1755640783452,0.0411313,179.11,179.06,269.5858086]
[1755640783650,3.1111313,179.11,179.07,2.9]
[1755640783848,3.1111313,179.11,179.06,266.6858086]
[1755640783849,3.1111313,179.11,179.08,2.9]
[1755640785256,0.0411313,179.11,179.06,135.16]
[1755640785453,0.0411313,179.11,179.08,2.9]
[1755640785754,0.0411313,179.11,179.09,2.9]
[1755640785952,3.1111313,179.11,179.09,2.9]
[1755640794863,3.1111313,179.11,179.06,138.20908471]
[1755640795061,3.1111313,179.11,179.1,2.9]
[1755640795560,0.0411313,179.11,179.1,2.9]
[1755640800278,0.0411313,179.11,179.07,3.01]
[1755640800476,0.0411313,179.11,179.09,3.01]
[1755640800671,0.0411313,179.11,179.03,3.01]
[1755640800672,5.66067541,179.1,179.03,3.01]
[1755640800877,2.97,179.06,179.03,3.01]
[1755640801083,2.97,179.05,179.03,3.01]
[1755640801378,3.00704144,179.06,179.0,3.01]
[1755640802168,3.04908471,179.05,178.99,135.22]
[1755640802370,2.97,179.03,179.0,3.01]
[1755640803176,3.04908471,179.05,179.01,3.01]
[1755640803483,2.97,179.04,179.01,3.01]
[1755640804181,3.04908471,179.05,179.01,3.01]
[1755640804382,2.97,179.02,178.95,3.01]
[1755640804583,3.04908471,179.01,178.95,3.01]
[1755640805080,0.04145616,179.0,178.95,3.01]
[1755640805281,3.01145616,179.0,178.97,3.01]
[1755640805581,3.01145616,179.0,178.96,3.01]
[1755640805776,3.01145616,179.0,178.97,3.01]
[1755640807287,0.04145616,179.0,178.98,3.01]
[1755640807683,0.04145616,179.0,178.99,3.01]
[1755640817889,0.04145616,179.0,178.94,135.26]
[1755640818287,2.97,178.99,178.97,3.01]
[1755640818989,0.04145616,179.0,178.94,135.26]
[1755640818990,3.01145616,179.0,178.95,3.01]
[1755640819192,2.97,178.98,178.94,135.26]
[1755640819492,2.97,178.99,178.94,135.26]
[1755640819892,2.97,178.99,178.92,3.01]
[1755640820595,2.97,178.99,178.9,3.01]
[1755640821401,3.00691457,178.96,178.9,3.01]
[1755640822897,3.00691457,178.96,178.89,3.01]
[1755640826002,0.03691457,178.96,178.89,3.01]
[1755640830203,0.03691457,178.96,178.9,5.5895]
[1755640830505,0.03691457,178.96,178.92,2.94]
[1755640830702,0.03691457,178.96,178.93,2.94]
[1755640831407,0.03691457,178.96,178.94,2.94]
[1755640833806,0.03691457,178.96,178.95,2.94]
[1755640834412,3.08691457,178.96,178.89,5.5899]
[1755640834607,3.08691457,178.96,178.94,2.94]
[1755640838208,3.08691457,178.96,178.89,5.5899]
[1755640838209,3.08691457,178.96,178.9,2.94]
[1755640841807,7.85612294,178.96,178.88,261.52544844]
[1755640842011,4.80612294,178.96,178.88,261.52544844]
[1755640842214,3.05,178.95,178.88,261.52544844]
[1755640842621,3.05,178.95,178.88,126.18544844]
[1755640844111,2.67690261,178.94,178.88,126.18544844]
[1755640844318,3.05,178.95,178.88,126.18544844]
[1755640847618,3.05,178.92,178.88,126.18544844]
[1755640848115,3.05,178.92,178.83,2.94]
[1755640848319,3.05,178.89,178.83,2.94]
[1755640849221,0.03600425,178.88,178.83,2.94]
[1755640849620,3.05,178.86,178.8,2.94]
[1755640850423,0.04155645,178.85,178.8,2.94]
[1755640850618,3.09155645,178.85,178.81,2.94]
[1755640850819,3.09155645,178.85,178.82,2.94]
[1755640852516,0.04155645,178.85,178.79,2.94]
[1755640858630,0.04155645,178.85,178.8,3.01]
[1755640859229,0.04155645,178.85,178.79,3.01]
[1755640864030,3.11155645,178.85,178.79,3.01]
[1755640875448,0.04155645,178.85,178.79,3.01]
[1755640876550,0.04155645,178.85,178.79,5.5931]
[1755640876754,3.11155645,178.85,178.8,3.01]
[1755640876950,3.11155645,178.85,178.81,3.01]
[1755640877148,0.04155645,178.85,178.78,263.83050832]
[1755640877352,0.04155645,178.85,178.81,3.01]
[1755640877953,0.04155645,178.85,178.83,3.01]
[1755640878144,0.04155645,178.85,178.84,138.61]
[1755640885454,0.04155645,178.85,178.84,144.2017]
[1755640885652,3.07,178.9,178.85,3.01]
[1755640885849,4.76920837,178.97,178.85,3.01]
[1755640886049,3.07,178.92,178.85,5.5913]
[1755640886249,3.07,178.92,178.86,3.01]
[1755640886450,3.07,178.91,178.88,3.01]
[1755640886954,3.07,178.91,178.88,3.045916]
[1755640887455,3.07,178.91,178.89,3.01]
[1755640888850,4.76920837,178.97,178.88,0.035916]
[1755640889054,3.03,178.94,178.88,138.515916]
[1755640891862,3.03,178.94,178.88,135.575916]
[1755640892061,4.76920837,178.97,178.9,2.94]
[1755640892262,3.03,178.96,178.9,2.94]
[1755640893261,3.03,178.96,178.92,2.94]
[1755640893558,3.03,178.96,178.93,2.94]
[1755640893759,3.03,178.99,178.93,2.94]
[1755640894660,3.03,178.99,178.89,4.76920837]
[1755640894863,3.03,178.99,178.94,0.03584658]
[1755640897863,4.76920837,179.0,178.94,0.03584658]
[1755640898058,4.76920837,179.0,178.83,6.23492643]
[1755640898059,3.03,178.96,178.87,2.94]
[1755640898464,3.03,178.96,178.83,140.34920837]
[1755640898662,3.03,178.96,178.84,2.94]
[1755640898959,3.03,178.94,178.84,2.94]
[1755640899358,0.03620795,178.92,178.84,2.94]
[1755640899563,3.03,178.91,178.84,2.94]
[1755640900359,3.03,178.91,178.83,140.34920837]
[1755640900564,3.03,178.91,178.83,138.52]
[1755640900968,3.03,178.91,178.84,2.94]
[1755640905366,3.03,178.91,178.83,135.58]
[1755640905673,3.03,178.9,178.83,135.58]
[1755640905973,3.03,178.9,178.81,2.94]
[1755640906870,3.03,178.9,178.78,128.17050832]
[1755640907071,3.03,178.9,178.79,2.94]
[1755640914573,0.03614276,178.86,178.79,2.94]
[1755640915181,0.03614276,178.86,178.8,5.5928]
[1755640915375,0.03614276,178.86,178.81,2.94]
[1755640916680,0.03614276,178.86,178.81,8.5326]
[1755640916881,0.03614276,178.86,178.82,2.94]
[1755640917382,0.03614276,178.86,178.83,138.58]
[1755640917576,0.03614276,178.86,178.84,2.94]
[1755640917770,3.03,178.94,178.84,2.94]
[1755640918279,3.03,178.94,178.87,2.94]
[1755640918883,3.03,178.94,178.87,8.5307]